[Event "Titled Tuesday Blitz January 10 Early 2023"]
[White "Levitan, Caleb Levi"]
[Black "Tania, Sachdev"]
[WhiteFideId "14332620"]
[BlackFideId "5007844"]
[WhiteElo "2129"]
[BlackElo "2389"]
[Result "0-1"]
[Round "10"]
[TimeControl "180+2"]
[Date "2023.01.10"]
[WhiteClock "0:00:02"]
[BlackClock "0:00:09"]

1. e4 {[%clk 0:03:00]}  c5 {[%clk 0:02:58]} 2. Nf3 {[%clk 0:03:01]}  e6 {[%clk 0:02:58]} 3. d4 {[%clk 0:03:00]}  cxd4 {[%clk 0:02:59]} 4. Nxd4 {[%clk 0:03:00]}  Nf6 {[%clk 0:02:56]} 5. Nc3 {[%clk 0:02:56]}  Nc6 {[%clk 0:02:56]} 6. Nxc6 {[%clk 0:02:49]}  bxc6 {[%clk 0:02:54]} 7. Bd3 {[%clk 0:02:50]}  d5 {[%clk 0:02:54]} 8. O-O {[%clk 0:02:49]}  Be7 {[%clk 0:02:52]} 9. f4 {[%clk 0:02:48]}  dxe4 {[%clk 0:02:37]} 10. Nxe4 {[%clk 0:02:47]}  O-O {[%clk 0:02:37]} 11. Qf3 {[%clk 0:02:41]}  Bb7 {[%clk 0:02:30]} 12. b3 {[%clk 0:02:37]}  c5 {[%clk 0:02:19]} 13. Bb2 {[%clk 0:02:21]}  Nxe4 {[%clk 0:02:14]} 14. Bxe4 {[%clk 0:02:21]}  Bxe4 {[%clk 0:02:15]} 15. Qxe4 {[%clk 0:02:22]}  Bf6 {[%clk 0:02:16]} 16. Rad1 {[%clk 0:02:20]}  Qe7 {[%clk 0:02:16]} 17. Be5 {[%clk 0:02:15]}  Rfd8 {[%clk 0:02:13]} 18. h3 {[%clk 0:01:56]}  g6 {[%clk 0:02:04]} 19. Qc6 {[%clk 0:01:11]}  Bxe5 {[%clk 0:01:29]} 20. fxe5 {[%clk 0:01:09]}  Rac8 {[%clk 0:01:29]} 21. Qa6 {[%clk 0:00:54]}  Rxd1 {[%clk 0:01:08]} 22. Rxd1 {[%clk 0:00:53]}  Rf8 {[%clk 0:00:58]} 23. Qc6 {[%clk 0:00:39]}  Rb8 {[%clk 0:00:45]} 24. Rd7 {[%clk 0:00:24]}  Qg5 {[%clk 0:00:44]} 25. Qe4 {[%clk 0:00:10]}  c4 {[%clk 0:00:40]} 26. Rxa7 {[%clk 0:00:07]}  cxb3 {[%clk 0:00:39]} 27. axb3 {[%clk 0:00:07]}  Rd8 {[%clk 0:00:32]} 28. Kh2 {[%clk 0:00:05]}  Rd5 {[%clk 0:00:31]} 29. Ra8+ {[%clk 0:00:03]}  Kg7 {[%clk 0:00:31]} 30. c4 {[%clk 0:00:02]}  Rxe5 {[%clk 0:00:30]} 31. Qd4 {[%clk 0:00:02]}  Kh6 {[%clk 0:00:25]} 32. c5 {[%clk 0:00:01]}  Re3 {[%clk 0:00:25]} 33. Qg4 {[%clk 0:00:01]}  Qxg4 {[%clk 0:00:24]} 34. hxg4 {[%clk 0:00:01]}  Rxb3 {[%clk 0:00:25]} 35. c6 {[%clk 0:00:02]}  Rc3 {[%clk 0:00:25]} 36. Rc8 {[%clk 0:00:02]}  Kg5 {[%clk 0:00:26]} 37. Rf8 {[%clk 0:00:01]}  f6 {[%clk 0:00:25]} 38. Rf7 {[%clk 0:00:01]}  Rxc6 {[%clk 0:00:24]} 39. Rxh7 {[%clk 0:00:02]}  Kxg4 {[%clk 0:00:25]} 40. Rh3 {[%clk 0:00:03]}  g5 {[%clk 0:00:21]} 41. Rg3+ {[%clk 0:00:04]}  Kf5 {[%clk 0:00:22]} 42. Rf3+ {[%clk 0:00:04]}  Kg6 {[%clk 0:00:22]} 43. g4 {[%clk 0:00:05]}  f5 {[%clk 0:00:22]} 44. gxf5+ {[%clk 0:00:05]}  exf5 {[%clk 0:00:22]} 45. Kg3 {[%clk 0:00:05]}  Rc4 {[%clk 0:00:19]} 46. Rb3 {[%clk 0:00:05]}  Kh5 {[%clk 0:00:18]} 47. Kg2 {[%clk 0:00:04]}  f4 {[%clk 0:00:18]} 48. Rb8 {[%clk 0:00:04]}  Kg4 {[%clk 0:00:18]} 49. Rb2 {[%clk 0:00:04]}  Kf5 {[%clk 0:00:17]} 50. Kf3 {[%clk 0:00:04]}  g4+ {[%clk 0:00:17]} 51. Kf2 {[%clk 0:00:04]}  Ke4 {[%clk 0:00:17]} 52. Re2+ {[%clk 0:00:04]}  Kd3 {[%clk 0:00:17]} 53. Re7 {[%clk 0:00:04]}  Rc2+ {[%clk 0:00:16]} 54. Kf1 {[%clk 0:00:04]}  g3 {[%clk 0:00:14]} 55. Rf7 {[%clk 0:00:02]}  Ke4 {[%clk 0:00:14]} 56. Re7+ {[%clk 0:00:02]}  Kf3 {[%clk 0:00:14]} 57. Re1 {[%clk 0:00:02]}  Rf2+ {[%clk 0:00:13]} 58. Kg1 {[%clk 0:00:03]}  Rg2+ {[%clk 0:00:13]} 59. Kf1 {[%clk 0:00:03]}  Rh2 {[%clk 0:00:11]} 60. Kg1 {[%clk 0:00:03]}  Rc2 {[%clk 0:00:11]} 61. Kf1 {[%clk 0:00:03]}  Kg4 {[%clk 0:00:11]} 62. Kg1 {[%clk 0:00:03]}  f3 {[%clk 0:00:11]} 63. Re7 {[%clk 0:00:02]}  Rc1+ {[%clk 0:00:09]} 0-1


[Site "https://www.chess.com"]

[Event "Titled Tuesday Blitz January 10 Early 2023"]
[White "Reprintsev, Alexander"]
[Black "Aspire_ie"]
[WhiteFideId "14100541"]
[WhiteElo "2253"]
[BlackElo "2307"]
[Result "1-0"]
[Round "10"]
[TimeControl "180+2"]
[Date "2023.01.10"]
[WhiteClock "0:01:37"]
[BlackClock "0:00:01"]

1. e4 {[%clk 0:03:00]}  d6 {[%clk 0:03:00]} 2. d4 {[%clk 0:02:59]}  Nf6 {[%clk 0:03:00]} 3. Nc3 {[%clk 0:02:59]}  g6 {[%clk 0:03:00]} 4. h4 {[%clk 0:02:59]}  h5 {[%clk 0:02:58]} 5. Nf3 {[%clk 0:02:58]}  Bg4 {[%clk 0:02:55]} 6. Be2 {[%clk 0:02:57]}  Bxf3 {[%clk 0:02:51]} 7. gxf3 {[%clk 0:02:57]}  e5 {[%clk 0:02:33]} 8. Bg5 {[%clk 0:02:56]}  Nbd7 {[%clk 0:02:29]} 9. Qd2 {[%clk 0:02:51]}  Bg7 {[%clk 0:02:27]} 10. O-O-O {[%clk 0:02:49]}  c6 {[%clk 0:02:13]} 11. f4 {[%clk 0:02:49]}  Qe7 {[%clk 0:02:01]} 12. fxe5 {[%clk 0:02:46]}  dxe5 {[%clk 0:02:00]} 13. f4 {[%clk 0:02:47]}  exd4 {[%clk 0:01:48]} 14. Qxd4 {[%clk 0:02:44]}  c5 {[%clk 0:01:24]} 15. Qa4 {[%clk 0:02:31]}  O-O {[%clk 0:00:46]} 16. e5 {[%clk 0:02:28]}  Nxe5 {[%clk 0:00:46]} 17. fxe5 {[%clk 0:02:27]}  Qxe5 {[%clk 0:00:47]} 18. Rhe1 {[%clk 0:02:21]}  Rfd8 {[%clk 0:00:25]} 19. Bd3 {[%clk 0:02:07]}  Qg3 {[%clk 0:00:18]} 20. Qf4 {[%clk 0:02:04]}  Qxf4+ {[%clk 0:00:15]} 21. Bxf4 {[%clk 0:02:05]}  Ng4 {[%clk 0:00:13]} 22. Ne4 {[%clk 0:01:59]}  b6 {[%clk 0:00:11]} 23. Bc4 {[%clk 0:01:53]}  Re8 {[%clk 0:00:06]} 24. Bxf7+ {[%clk 0:01:49]}  Kxf7 {[%clk 0:00:05]} 25. Nd6+ {[%clk 0:01:50]}  Kf8 {[%clk 0:00:04]} 26. Nxe8 {[%clk 0:01:49]}  Rxe8 {[%clk 0:00:05]} 27. Bd6+ {[%clk 0:01:49]}  Kf7 {[%clk 0:00:05]} 28. Rxe8 {[%clk 0:01:47]}  Kxe8 {[%clk 0:00:05]} 29. Re1+ {[%clk 0:01:48]}  Kf7 {[%clk 0:00:02]} 30. Re7+ {[%clk 0:01:47]}  Kf6 {[%clk 0:00:02]} 31. Rxa7 {[%clk 0:01:47]}  Bh6+ {[%clk 0:00:03]} 32. Kb1 {[%clk 0:01:43]}  Be3 {[%clk 0:00:03]} 33. Rb7 {[%clk 0:01:40]}  c4 {[%clk 0:00:03]} 34. Bc7 {[%clk 0:01:38]}  Bf2 {[%clk 0:00:01]} 35. Bxb6 {[%clk 0:01:37]} 1-0


[Site "https://www.chess.com"]

[Event "Titled Tuesday Blitz January 10 Early 2023"]
[White "Lakshmi C"]
[Black "Goldin, Roman"]
[WhiteFideId "25035347"]
[BlackFideId "2803860"]
[WhiteElo "1928"]
[BlackElo "2322"]
[Result "0-1"]
[Round "10"]
[TimeControl "180+2"]
[Date "2023.01.10"]
[WhiteClock "0:00:04"]
[BlackClock "0:00:46"]

1. e4 {[%clk 0:02:51]}  Nc6 {[%clk 0:02:59]} 2. d4 {[%clk 0:02:50]}  e5 {[%clk 0:02:59]} 3. d5 {[%clk 0:02:36]}  Nce7 {[%clk 0:02:59]} 4. c4 {[%clk 0:02:32]}  Nf6 {[%clk 0:02:57]} 5. Nc3 {[%clk 0:02:31]}  Ng6 {[%clk 0:02:57]} 6. g3 {[%clk 0:02:30]}  Bc5 {[%clk 0:02:55]} 7. Bg2 {[%clk 0:02:28]}  d6 {[%clk 0:02:55]} 8. h3 {[%clk 0:02:22]}  a6 {[%clk 0:02:55]} 9. Nge2 {[%clk 0:02:22]}  Bd7 {[%clk 0:02:54]} 10. O-O {[%clk 0:02:21]}  O-O {[%clk 0:02:55]} 11. Kh1 {[%clk 0:02:20]}  h6 {[%clk 0:02:46]} 12. f4 {[%clk 0:02:19]}  exf4 {[%clk 0:02:45]} 13. Nxf4 {[%clk 0:01:57]}  Ne5 {[%clk 0:02:43]} 14. b3 {[%clk 0:01:52]}  Qe7 {[%clk 0:02:40]} 15. a3 {[%clk 0:01:48]}  Rae8 {[%clk 0:02:40]} 16. Bb2 {[%clk 0:01:47]}  Nh7 {[%clk 0:02:33]} 17. g4 {[%clk 0:01:39]}  Qh4 {[%clk 0:02:17]} 18. Qe1 {[%clk 0:01:06]}  Qxe1 {[%clk 0:02:16]} 19. Raxe1 {[%clk 0:00:56]}  g6 {[%clk 0:01:41]} 20. Rd1 {[%clk 0:00:20]}  Re7 {[%clk 0:01:36]} 21. Nce2 {[%clk 0:00:20]}  Rfe8 {[%clk 0:01:34]} 22. Nd4 {[%clk 0:00:19]}  Ng5 {[%clk 0:01:18]} 23. Rfe1 {[%clk 0:00:17]}  Bxd4 {[%clk 0:01:04]} 24. Bxd4 {[%clk 0:00:16]}  Nef3 {[%clk 0:01:00]} 25. Bxf3 {[%clk 0:00:08]}  Nxf3 {[%clk 0:00:59]} 26. Re3 {[%clk 0:00:08]}  Ng5 {[%clk 0:00:51]} 27. Rde1 {[%clk 0:00:08]}  Rxe4 {[%clk 0:00:50]} 28. Ne6 {[%clk 0:00:04]}  Rxe3 {[%clk 0:00:46]} 0-1


[Site "https://www.chess.com"]

[Event "Titled Tuesday Blitz January 10 Early 2023"]
[White "Fabris, Alberto"]
[Black "Novikov, Evgenij"]
[WhiteFideId "801348"]
[BlackFideId "4125380"]
[WhiteElo "2230"]
[BlackElo "2276"]
[Result "0-1"]
[Round "10"]
[TimeControl "180+2"]
[Date "2023.01.10"]
[WhiteClock "0:01:10"]
[BlackClock "0:00:23"]

1. e4 {[%clk 0:03:00]}  e5 {[%clk 0:02:55]} 2. Nf3 {[%clk 0:02:57]}  Nc6 {[%clk 0:02:55]} 3. Bb5 {[%clk 0:02:57]}  a6 {[%clk 0:02:54]} 4. Ba4 {[%clk 0:02:56]}  Nf6 {[%clk 0:02:54]} 5. O-O {[%clk 0:02:56]}  Be7 {[%clk 0:02:53]} 6. Re1 {[%clk 0:02:55]}  b5 {[%clk 0:02:52]} 7. Bb3 {[%clk 0:02:56]}  O-O {[%clk 0:02:51]} 8. h3 {[%clk 0:02:56]}  d5 {[%clk 0:02:43]} 9. exd5 {[%clk 0:02:55]}  Nxd5 {[%clk 0:02:44]} 10. Nxe5 {[%clk 0:02:55]}  Nxe5 {[%clk 0:02:44]} 11. Rxe5 {[%clk 0:02:55]}  c6 {[%clk 0:02:37]} 12. d3 {[%clk 0:02:51]}  Bd6 {[%clk 0:02:34]} 13. Re1 {[%clk 0:02:48]}  Qh4 {[%clk 0:02:29]} 14. Qf3 {[%clk 0:02:46]}  Bb7 {[%clk 0:02:22]} 15. Nc3 {[%clk 0:02:43]}  Nxc3 {[%clk 0:02:15]} 16. bxc3 {[%clk 0:02:43]}  Ra7 {[%clk 0:02:09]} 17. Bd2 {[%clk 0:02:38]}  c5 {[%clk 0:01:36]} 18. Bd5 {[%clk 0:02:35]}  Bxd5 {[%clk 0:01:37]} 19. Qxd5 {[%clk 0:02:35]}  Qf6 {[%clk 0:01:27]} 20. Re4 {[%clk 0:02:11]}  Rd7 {[%clk 0:01:26]} 21. Qh5 {[%clk 0:02:10]}  g6 {[%clk 0:01:22]} 22. Qe2 {[%clk 0:02:07]}  b4 {[%clk 0:01:19]} 23. d4 {[%clk 0:02:01]}  a5 {[%clk 0:00:41]} 24. Re1 {[%clk 0:01:58]}  Bc7 {[%clk 0:00:35]} 25. cxb4 {[%clk 0:01:52]}  cxb4 {[%clk 0:00:30]} 26. Be3 {[%clk 0:01:46]}  Qd6 {[%clk 0:00:28]} 27. g3 {[%clk 0:01:45]}  Qd5 {[%clk 0:00:28]} 28. Re8 {[%clk 0:01:38]}  Rxe8 {[%clk 0:00:26]} 29. Qg4 {[%clk 0:01:18]}  Rde7 {[%clk 0:00:25]} 30. Qd1 {[%clk 0:01:10]}  Bxg3 {[%clk 0:00:23]} 0-1


[Site "https://www.chess.com"]

[Event "Titled Tuesday Blitz January 10 Early 2023"]
[White "ritanovikova"]
[Black "Salman, Pavel"]
[BlackFideId "24153753"]
[WhiteElo "2112"]
[BlackElo "2287"]
[Result "0-1"]
[Round "10"]
[TimeControl "180+2"]
[Date "2023.01.10"]
[WhiteClock "0:00:11"]
[BlackClock "0:00:21"]

1. d4 {[%clk 0:03:00]}  Nf6 {[%clk 0:02:59]} 2. Bf4 {[%clk 0:03:00]}  d6 {[%clk 0:02:58]} 3. Nd2 {[%clk 0:02:56]}  g6 {[%clk 0:02:58]} 4. Ngf3 {[%clk 0:02:55]}  Bg7 {[%clk 0:02:59]} 5. c3 {[%clk 0:02:55]}  O-O {[%clk 0:02:59]} 6. e3 {[%clk 0:02:53]}  Nfd7 {[%clk 0:03:00]} 7. Bg5 {[%clk 0:02:46]}  h6 {[%clk 0:02:57]} 8. Bh4 {[%clk 0:02:46]}  Qe8 {[%clk 0:02:55]} 9. Bb5 {[%clk 0:02:38]}  c6 {[%clk 0:02:55]} 10. Ba4 {[%clk 0:02:38]}  e5 {[%clk 0:02:53]} 11. O-O {[%clk 0:02:37]}  f5 {[%clk 0:02:51]} 12. Bb3+ {[%clk 0:02:31]}  Kh7 {[%clk 0:02:50]} 13. dxe5 {[%clk 0:02:29]}  dxe5 {[%clk 0:02:50]} 14. Bc2 {[%clk 0:01:54]}  e4 {[%clk 0:02:49]} 15. Nd4 {[%clk 0:01:50]}  Ne5 {[%clk 0:02:48]} 16. Bg3 {[%clk 0:01:48]}  Nbd7 {[%clk 0:02:47]} 17. Bb3 {[%clk 0:01:39]}  Nc5 {[%clk 0:02:44]} 18. Nc4 {[%clk 0:01:30]}  Nxc4 {[%clk 0:02:38]} 19. Bxc4 {[%clk 0:01:31]}  b5 {[%clk 0:02:38]} 20. Be2 {[%clk 0:01:26]}  g5 {[%clk 0:02:33]} 21. Bd6 {[%clk 0:01:26]}  Nd7 {[%clk 0:02:28]} 22. Bxf8 {[%clk 0:01:25]}  Nxf8 {[%clk 0:02:28]} 23. Bh5 {[%clk 0:01:20]}  Ng6 {[%clk 0:02:21]} 24. Bxg6+ {[%clk 0:01:18]}  Qxg6 {[%clk 0:02:20]} 25. a4 {[%clk 0:01:14]}  bxa4 {[%clk 0:02:04]} 26. Qxa4 {[%clk 0:01:12]}  c5 {[%clk 0:02:00]} 27. Qc6 {[%clk 0:01:07]}  Rb8 {[%clk 0:01:36]} 28. Qxg6+ {[%clk 0:01:06]}  Kxg6 {[%clk 0:01:36]} 29. Nc6 {[%clk 0:01:02]}  Rb7 {[%clk 0:01:30]} 30. Rxa7 {[%clk 0:01:01]}  Rxa7 {[%clk 0:01:28]} 31. Nxa7 {[%clk 0:01:01]}  Ba6 {[%clk 0:01:28]} 32. Rd1 {[%clk 0:01:00]}  Bd3 {[%clk 0:01:27]} 33. f3 {[%clk 0:00:53]}  c4 {[%clk 0:01:26]} 34. Nb5 {[%clk 0:00:50]}  Be5 {[%clk 0:01:20]} 35. Ra1 {[%clk 0:00:47]}  f4 {[%clk 0:01:15]} 36. exf4 {[%clk 0:00:44]}  Bxf4 {[%clk 0:01:12]} 37. fxe4 {[%clk 0:00:42]}  Bxe4 {[%clk 0:01:09]} 38. Nd4 {[%clk 0:00:37]}  Be3+ {[%clk 0:01:07]} 39. Kf1 {[%clk 0:00:33]}  Bd3+ {[%clk 0:01:06]} 40. Ke1 {[%clk 0:00:33]}  g4 {[%clk 0:01:04]} 41. Ra5 {[%clk 0:00:30]}  Bg1 {[%clk 0:00:56]} 42. h3 {[%clk 0:00:26]}  g3 {[%clk 0:00:55]} 43. Kd2 {[%clk 0:00:24]}  Be4 {[%clk 0:00:29]} 44. Ne2 {[%clk 0:00:23]}  Bf2 {[%clk 0:00:26]} 45. Re5 {[%clk 0:00:23]}  Bd3 {[%clk 0:00:26]} 46. Nf4+ {[%clk 0:00:20]}  Kf6 {[%clk 0:00:26]} 47. Rh5 {[%clk 0:00:19]}  Be4 {[%clk 0:00:25]} 48. Rxh6+ {[%clk 0:00:19]}  Kg5 {[%clk 0:00:26]} 49. Rg6+ {[%clk 0:00:17]}  Kxf4 {[%clk 0:00:26]} 50. Rg8 {[%clk 0:00:16]}  Bxg2 {[%clk 0:00:27]} 51. h4 {[%clk 0:00:17]}  Be4 {[%clk 0:00:25]} 52. h5 {[%clk 0:00:17]}  g2 {[%clk 0:00:24]} 53. h6 {[%clk 0:00:17]}  g1=Q {[%clk 0:00:21]} 54. Rxg1 {[%clk 0:00:16]}  Bxg1 {[%clk 0:00:22]} 55. Kc1 {[%clk 0:00:14]}  Be3+ {[%clk 0:00:21]} 56. Kd1 {[%clk 0:00:13]}  Ke5 {[%clk 0:00:21]} 57. Ke2 {[%clk 0:00:11]}  Bxh6 {[%clk 0:00:21]} 0-1


[Site "https://www.chess.com"]

[Event "Titled Tuesday Blitz January 10 Early 2023"]
[White "Sreyas Payyappat"]
[Black "Larina, Maria"]
[WhiteFideId "46674969"]
[BlackFideId "24113182"]
[WhiteElo "2076"]
[BlackElo "1948"]
[Result "1-0"]
[Round "10"]
[TimeControl "180+2"]
[Date "2023.01.10"]
[WhiteClock "0:00:41"]
[BlackClock "0:00:07"]

1. e4 {[%clk 0:02:56]}  c6 {[%clk 0:02:59]} 2. d4 {[%clk 0:02:53]}  d5 {[%clk 0:03:00]} 3. Nc3 {[%clk 0:02:54]}  dxe4 {[%clk 0:03:00]} 4. Nxe4 {[%clk 0:02:55]}  Nf6 {[%clk 0:03:00]} 5. Nxf6+ {[%clk 0:02:55]}  exf6 {[%clk 0:03:01]} 6. Bc4 {[%clk 0:02:53]}  Bd6 {[%clk 0:02:59]} 7. Qe2+ {[%clk 0:02:53]}  Qe7 {[%clk 0:02:42]} 8. Qxe7+ {[%clk 0:02:51]}  Bxe7 {[%clk 0:02:41]} 9. Ne2 {[%clk 0:02:51]}  O-O {[%clk 0:02:41]} 10. O-O {[%clk 0:02:51]}  Bg4 {[%clk 0:02:31]} 11. f3 {[%clk 0:02:49]}  Bf5 {[%clk 0:02:29]} 12. c3 {[%clk 0:02:44]}  Nd7 {[%clk 0:02:17]} 13. Re1 {[%clk 0:02:42]}  Rfe8 {[%clk 0:02:13]} 14. Bf4 {[%clk 0:02:39]}  Nb6 {[%clk 0:02:13]} 15. Bb3 {[%clk 0:02:35]}  g5 {[%clk 0:02:05]} 16. Ng3 {[%clk 0:02:25]}  Bg6 {[%clk 0:01:59]} 17. Bc7 {[%clk 0:02:21]}  h5 {[%clk 0:01:50]} 18. Bxb6 {[%clk 0:02:19]}  axb6 {[%clk 0:01:50]} 19. Re2 {[%clk 0:02:14]}  h4 {[%clk 0:01:50]} 20. Ne4 {[%clk 0:02:13]}  f5 {[%clk 0:01:44]} 21. Nf2 {[%clk 0:02:13]}  Bd6 {[%clk 0:01:35]} 22. Rae1 {[%clk 0:02:12]}  Kf8 {[%clk 0:01:27]} 23. Nh3 {[%clk 0:02:07]}  f6 {[%clk 0:01:19]} 24. Be6 {[%clk 0:01:57]}  f4 {[%clk 0:01:11]} 25. Nf2 {[%clk 0:01:55]}  Kg7 {[%clk 0:00:57]} 26. Bb3 {[%clk 0:01:49]}  Rxe2 {[%clk 0:00:55]} 27. Rxe2 {[%clk 0:01:50]}  Re8 {[%clk 0:00:55]} 28. Rxe8 {[%clk 0:01:48]}  Bxe8 {[%clk 0:00:56]} 29. Ne4 {[%clk 0:01:49]}  Be7 {[%clk 0:00:36]} 30. Kf2 {[%clk 0:01:46]}  f5 {[%clk 0:00:32]} 31. Nd2 {[%clk 0:01:46]}  Bf7 {[%clk 0:00:20]} 32. Bxf7 {[%clk 0:01:44]}  Kxf7 {[%clk 0:00:21]} 33. Nc4 {[%clk 0:01:44]}  Bd8 {[%clk 0:00:20]} 34. Nd6+ {[%clk 0:01:43]}  Ke6 {[%clk 0:00:21]} 35. Nxb7 {[%clk 0:01:40]}  Bc7 {[%clk 0:00:21]} 36. c4 {[%clk 0:01:38]}  Kd7 {[%clk 0:00:20]} 37. c5 {[%clk 0:01:37]}  Kc8 {[%clk 0:00:20]} 38. cxb6 {[%clk 0:01:31]}  Bxb6 {[%clk 0:00:15]} 39. Nc5 {[%clk 0:01:29]}  Kc7 {[%clk 0:00:13]} 40. Ke2 {[%clk 0:01:28]}  Kd6 {[%clk 0:00:13]} 41. b4 {[%clk 0:01:28]}  Kd5 {[%clk 0:00:13]} 42. Kd3 {[%clk 0:01:28]}  Bd8 {[%clk 0:00:12]} 43. a4 {[%clk 0:01:27]}  g4 {[%clk 0:00:12]} 44. a5 {[%clk 0:01:25]}  gxf3 {[%clk 0:00:11]} 45. gxf3 {[%clk 0:01:25]}  h3 {[%clk 0:00:12]} 46. Nd7 {[%clk 0:01:17]}  Kd6 {[%clk 0:00:11]} 47. Ne5 {[%clk 0:01:09]}  Kc7 {[%clk 0:00:11]} 48. Ng6 {[%clk 0:01:06]}  Bh4 {[%clk 0:00:10]} 49. Nxf4 {[%clk 0:01:05]}  Bg3 {[%clk 0:00:10]} 50. Nxh3 {[%clk 0:01:05]}  Bxh2 {[%clk 0:00:10]} 51. f4 {[%clk 0:01:03]}  Bg3 {[%clk 0:00:09]} 52. Ke2 {[%clk 0:01:01]}  Bh4 {[%clk 0:00:08]} 53. Ng5 {[%clk 0:01:01]}  Kb7 {[%clk 0:00:08]} 54. Nf7 {[%clk 0:00:58]}  Be7 {[%clk 0:00:07]} 55. d5 {[%clk 0:00:46]}  cxd5 {[%clk 0:00:07]} 56. b5 {[%clk 0:00:44]}  Bb4 {[%clk 0:00:07]} 57. a6+ {[%clk 0:00:43]}  Kb6 {[%clk 0:00:07]} 58. Ne5 {[%clk 0:00:40]}  Bc5 {[%clk 0:00:06]} 59. Nd7+ {[%clk 0:00:39]}  Kxb5 {[%clk 0:00:06]} 60. Nxc5 {[%clk 0:00:40]}  Kxc5 {[%clk 0:00:07]} 61. a7 {[%clk 0:00:40]}  d4 {[%clk 0:00:07]} 62. a8=Q {[%clk 0:00:41]} 1-0


[Site "https://www.chess.com"]

[Event "Titled Tuesday Blitz January 10 Early 2023"]
[White "Lacasa Diaz, Jose Antonio"]
[Black "Legenia, Artem"]
[WhiteFideId "2203375"]
[BlackFideId "14136945"]
[WhiteElo "2359"]
[BlackElo "2092"]
[Result "0-1"]
[Round "10"]
[TimeControl "180+2"]
[Date "2023.01.10"]
[WhiteClock "0:00:34"]
[BlackClock "0:01:24"]

1. e4 {[%clk 0:02:57]}  c5 {[%clk 0:02:59]} 2. Nf3 {[%clk 0:02:57]}  d6 {[%clk 0:02:59]} 3. d4 {[%clk 0:02:55]}  cxd4 {[%clk 0:02:59]} 4. Nxd4 {[%clk 0:02:56]}  Nf6 {[%clk 0:02:59]} 5. Nc3 {[%clk 0:02:56]}  g6 {[%clk 0:02:59]} 6. Be3 {[%clk 0:02:55]}  a6 {[%clk 0:02:59]} 7. h3 {[%clk 0:02:45]}  Bg7 {[%clk 0:02:59]} 8. Qd2 {[%clk 0:02:45]}  h5 {[%clk 0:02:58]} 9. O-O-O {[%clk 0:02:44]}  Nbd7 {[%clk 0:02:58]} 10. Kb1 {[%clk 0:02:43]}  b5 {[%clk 0:02:54]} 11. Bd3 {[%clk 0:02:34]}  Bb7 {[%clk 0:02:54]} 12. f3 {[%clk 0:02:19]}  Rc8 {[%clk 0:02:50]} 13. g4 {[%clk 0:02:15]}  Nb6 {[%clk 0:02:48]} 14. Qf2 {[%clk 0:02:00]}  Nc4 {[%clk 0:02:43]} 15. Bxc4 {[%clk 0:01:52]}  Rxc4 {[%clk 0:02:42]} 16. e5 {[%clk 0:01:44]}  Nd5 {[%clk 0:02:39]} 17. Nxd5 {[%clk 0:01:39]}  Bxd5 {[%clk 0:02:39]} 18. exd6 {[%clk 0:01:37]}  Qxd6 {[%clk 0:02:39]} 19. Nb3 {[%clk 0:01:32]}  Qf6 {[%clk 0:02:06]} 20. Bd4 {[%clk 0:01:25]}  Rxd4 {[%clk 0:02:04]} 21. Nxd4 {[%clk 0:01:17]}  hxg4 {[%clk 0:01:59]} 22. hxg4 {[%clk 0:01:07]}  Rxh1 {[%clk 0:01:57]} 23. Rxh1 {[%clk 0:01:06]}  Qxd4 {[%clk 0:01:49]} 24. Qxd4 {[%clk 0:01:04]}  Bxd4 {[%clk 0:01:49]} 25. Rd1 {[%clk 0:01:05]}  e5 {[%clk 0:01:41]} 26. f4 {[%clk 0:00:41]}  Bf3 {[%clk 0:01:36]} 27. Re1 {[%clk 0:00:39]}  e4 {[%clk 0:01:31]} 28. g5 {[%clk 0:00:34]}  Ke7 {[%clk 0:01:24]} 0-1


[Site "https://www.chess.com"]

[Event "Titled Tuesday Blitz January 10 Early 2023"]
[White "Shubenkova, Veronika"]
[Black "Cepo, Toni"]
[WhiteFideId "44124040"]
[BlackFideId "4675916"]
[WhiteElo "1960"]
[BlackElo "2145"]
[Result "1-0"]
[Round "10"]
[TimeControl "180+2"]
[Date "2023.01.10"]
[WhiteClock "0:01:16"]
[BlackClock "0:01:09"]

1. e4 {[%clk 0:02:59]}  e5 {[%clk 0:02:59]} 2. Nf3 {[%clk 0:02:51]}  Nf6 {[%clk 0:02:56]} 3. Nxe5 {[%clk 0:02:51]}  d6 {[%clk 0:02:53]} 4. Nf3 {[%clk 0:02:51]}  Nxe4 {[%clk 0:02:53]} 5. d3 {[%clk 0:02:51]}  Nf6 {[%clk 0:02:50]} 6. Be2 {[%clk 0:02:51]}  Be7 {[%clk 0:02:33]} 7. O-O {[%clk 0:02:51]}  O-O {[%clk 0:02:33]} 8. d4 {[%clk 0:02:50]}  d5 {[%clk 0:02:32]} 9. h3 {[%clk 0:02:50]}  Ne4 {[%clk 0:02:32]} 10. c3 {[%clk 0:02:50]}  c6 {[%clk 0:02:30]} 11. Bf4 {[%clk 0:02:49]}  Bf5 {[%clk 0:02:29]} 12. Nbd2 {[%clk 0:02:47]}  Nd7 {[%clk 0:02:28]} 13. Nxe4 {[%clk 0:02:43]}  Bxe4 {[%clk 0:02:26]} 14. Nd2 {[%clk 0:02:43]}  Bg6 {[%clk 0:02:25]} 15. Re1 {[%clk 0:02:43]}  Nf6 {[%clk 0:02:22]} 16. Nf1 {[%clk 0:02:41]}  Bd6 {[%clk 0:01:57]} 17. Qd2 {[%clk 0:02:40]}  Bxf4 {[%clk 0:01:56]} 18. Qxf4 {[%clk 0:02:40]}  Qd7 {[%clk 0:01:56]} 19. Ng3 {[%clk 0:02:38]}  Rfe8 {[%clk 0:01:56]} 20. Bf3 {[%clk 0:02:38]}  Rxe1+ {[%clk 0:01:54]} 21. Rxe1 {[%clk 0:02:37]}  Re8 {[%clk 0:01:55]} 22. Rxe8+ {[%clk 0:02:37]}  Qxe8 {[%clk 0:01:56]} 23. Kh2 {[%clk 0:02:35]}  h6 {[%clk 0:01:55]} 24. Nf5 {[%clk 0:02:32]}  Bxf5 {[%clk 0:01:54]} 25. Qxf5 {[%clk 0:02:32]}  Qb8+ {[%clk 0:01:51]} 26. g3 {[%clk 0:02:32]}  Qe8 {[%clk 0:01:50]} 27. Kg2 {[%clk 0:02:31]}  Qe7 {[%clk 0:01:47]} 28. Bd1 {[%clk 0:02:23]}  g6 {[%clk 0:01:46]} 29. Qf3 {[%clk 0:02:21]}  Qe4 {[%clk 0:01:47]} 30. Qxe4 {[%clk 0:02:20]}  Nxe4 {[%clk 0:01:47]} 31. Bc2 {[%clk 0:02:21]}  Nd6 {[%clk 0:01:47]} 32. Bd3 {[%clk 0:02:20]}  f5 {[%clk 0:01:46]} 33. f3 {[%clk 0:02:19]}  Kf7 {[%clk 0:01:46]} 34. Kf2 {[%clk 0:02:20]}  Kf6 {[%clk 0:01:45]} 35. Ke3 {[%clk 0:02:19]}  g5 {[%clk 0:01:45]} 36. b3 {[%clk 0:02:10]}  Nc8 {[%clk 0:01:35]} 37. a4 {[%clk 0:02:09]}  Ne7 {[%clk 0:01:35]} 38. f4 {[%clk 0:02:00]}  Ng6 {[%clk 0:01:32]} 39. Be2 {[%clk 0:01:56]}  gxf4+ {[%clk 0:01:28]} 40. gxf4 {[%clk 0:01:56]}  Nh4 {[%clk 0:01:28]} 41. Kf2 {[%clk 0:01:53]}  Ng6 {[%clk 0:01:28]} 42. Kg3 {[%clk 0:01:52]}  Nh8 {[%clk 0:01:27]} 43. c4 {[%clk 0:01:52]}  Nf7 {[%clk 0:01:26]} 44. Bf3 {[%clk 0:01:48]}  dxc4 {[%clk 0:01:25]} 45. bxc4 {[%clk 0:01:47]}  Nd6 {[%clk 0:01:26]} 46. c5 {[%clk 0:01:45]}  Nc4 {[%clk 0:01:23]} 47. d5 {[%clk 0:01:46]}  Na5 {[%clk 0:01:20]} 48. Kh4 {[%clk 0:01:40]}  Nb3 {[%clk 0:01:18]} 49. dxc6 {[%clk 0:01:40]}  bxc6 {[%clk 0:01:19]} 50. Bxc6 {[%clk 0:01:40]}  Nxc5 {[%clk 0:01:20]} 51. a5 {[%clk 0:01:41]}  Nd3 {[%clk 0:01:18]} 52. Kg3 {[%clk 0:01:37]}  Nb4 {[%clk 0:01:18]} 53. Bd7 {[%clk 0:01:33]}  Nd5 {[%clk 0:01:17]} 54. Kf3 {[%clk 0:01:31]}  Nc3 {[%clk 0:01:15]} 55. Ke3 {[%clk 0:01:26]}  Ne4 {[%clk 0:01:15]} 56. Kd4 {[%clk 0:01:24]}  Nf2 {[%clk 0:01:15]} 57. h4 {[%clk 0:01:24]}  Nh3 {[%clk 0:01:13]} 58. Ke3 {[%clk 0:01:23]}  Ng1 {[%clk 0:01:11]} 59. Bb5 {[%clk 0:01:20]}  Ke6 {[%clk 0:01:09]} 60. Kf2 {[%clk 0:01:17]}  Nh3+ {[%clk 0:01:09]} 61. Kg3 {[%clk 0:01:17]}  Ng1 {[%clk 0:01:09]} 62. Kg2 {[%clk 0:01:16]} 1-0


[Site "https://www.chess.com"]